bitfinex/quotes_BTCUSD_20220218
["timestamp","ask_amount","ask_price","bid_price","bid_amount"]
[1645200914787,0.12745494,40127.0,40125.0,3.76e-06]
[1645200914986,0.1,40126.0,40125.0,3.76e-06]
[1645200915189,0.01875478,40128.0,40125.0,3.76e-06]
[1645200915389,0.01875478,40128.0,40111.0,0.062355]
[1645200915392,0.35,40119.0,40111.0,0.062355]
[1645200915598,0.35,40119.0,40107.0,0.0099]
[1645200915599,0.29800825,40112.0,40107.0,0.0099]
[1645200915801,0.1,40108.0,40089.0,0.05]
[1645200915989,0.33723856,40111.0,40091.0,0.06239262]
[1645200915990,0.14516346,40107.0,40091.0,0.06239262]
[1645200916188,0.14516346,40107.0,40094.0,0.5]
[1645200916388,0.140991,40098.0,40094.0,0.45]
[1645200916591,0.0462,40124.0,40094.0,0.45]
[1645200916792,0.1032666,40129.0,40099.0,0.0015]
[1645200916793,0.00021182,40107.0,40099.0,0.0015]
[1645200916996,0.00021182,40107.0,40106.0,0.0015]
[1645200917192,7.365e-05,40128.0,40107.0,1.6]
[1645200917591,7.365e-05,40128.0,40113.0,0.0015]
[1645200917592,0.13836228,40121.0,40113.0,0.0015]
[1645200917793,0.13836228,40121.0,40105.0,0.30474558]
[1645200917794,0.26108855,40115.0,40105.0,0.30474558]
[1645200918062,0.34387519,40128.0,40109.0,0.0015]
[1645200918262,0.33887519,40128.0,40109.0,0.09852]
[1645200918470,0.00556025,40129.0,40110.0,0.40474558]
[1645200918662,0.00556025,40129.0,40122.0,0.0015]
[1645200918863,0.0010392,40132.0,40129.0,1.3]
[1645200919064,0.0010392,40132.0,40131.0,0.06899228]
[1645200919065,9.2e-06,40132.0,40131.0,0.06899228]
[1645200919263,0.80317181,40138.0,40132.0,1.6]
[1645200919464,0.38037325,40138.0,40137.0,0.0015]
[1645200919662,0.38037325,40138.0,40137.0,0.06899228]
[1645200919862,0.38037325,40138.0,40137.0,0.06749228]
[1645200920063,0.37837325,40138.0,40137.0,0.06749228]
[1645200920262,0.0020634,40141.0,40137.0,0.11519228]
[1645200920565,0.7507,40152.0,40140.0,0.76899228]
[1645200920761,0.00018064,40145.0,40144.0,0.06749228]
[1645200921165,0.00018064,40145.0,40144.0,0.06899228]
[1645200921362,0.00018064,40145.0,40133.0,0.062302]
[1645200921363,1.6,40143.0,40115.0,0.21186735]
[1645200921561,1.6,40143.0,40119.0,0.01420047]
[1645200921562,1.37957706,40138.0,40119.0,0.01420047]
[1645200921814,1.37957706,40138.0,40120.0,0.5]
[1645200921816,1.06058099,40137.0,40120.0,0.5]
[1645200922094,1.08900541,40136.0,40125.0,0.12465694]
[1645200922394,0.05018064,40145.0,40119.0,0.7]
[1645200922395,0.1,40142.0,40119.0,0.7]
[1645200922589,0.10018064,40145.0,40126.0,0.7]
[1645200922590,0.1,40141.0,40126.0,0.7]
[1645200922788,0.1,40141.0,40121.0,0.24416459]
[1645200922789,0.1,40130.0,40123.0,0.02493135]
[1645200922989,0.10018064,40145.0,40130.0,0.3]
[1645200922990,0.00018064,40145.0,40130.0,0.3]
[1645200923190,0.00018064,40145.0,40133.0,0.7]
[1645200923392,0.25351684,40142.0,40133.0,0.7]
[1645200923590,0.25351684,40142.0,40130.0,0.3]
[1645200923591,0.15,40134.0,40130.0,0.3]
[1645200923795,0.1,40142.0,40133.0,0.07]
[1645200923990,0.30955094,40140.0,40130.0,0.3]
[1645200924995,0.1,40142.0,40130.0,0.35]
[1645200925191,0.1,40142.0,40134.0,0.07]
[1645200925392,0.00018064,40145.0,40138.0,0.07]
[1645200925638,0.15018064,40145.0,40142.0,0.07]
[1645200925839,6.977e-05,40139.0,40136.0,0.1]
[1645200926240,6.977e-05,40139.0,40130.0,0.3]
[1645200926638,0.1,40132.0,40130.0,0.3]
[1645200926839,0.1,40132.0,40131.0,0.07]
[1645200926840,0.22192681,40132.0,40131.0,0.07]
[1645200927038,0.74895027,40132.0,40131.0,0.07]
[1645200927237,0.36961124,40132.0,40131.0,0.07]
[1645200928042,0.1073156,40110.0,40098.0,0.24926954]
[1645200928242,0.2573156,40110.0,40098.0,0.5]
[1645200928443,0.1462,40114.0,40098.0,0.5]
[1645200928739,0.0999,40111.0,40097.0,0.05]
[1645200928942,0.10037396,40114.0,40097.0,0.05]
[1645200929139,0.1,40114.0,40108.0,0.03581]
[1645200929396,0.00037396,40116.0,40108.0,0.03581]
[1645200929592,0.12753176,40116.0,40108.0,0.03581]
[1645200929994,0.12790572,40116.0,40108.0,0.03581]
[1645200930191,0.12753176,40116.0,40112.0,0.07]
[1645200930392,0.12753176,40116.0,40115.0,0.07]
[1645200930393,0.00037396,40116.0,40115.0,0.07]
[1645200930595,0.00037396,40118.0,40115.0,0.07]
[1645200930793,0.1,40124.0,40117.0,0.07]
[1645200930794,0.00037396,40120.0,40117.0,0.07]
[1645200930993,6.649e-05,40113.0,40109.0,1.331]
[1645200931299,0.87610552,40133.0,40113.0,1.33119946]
[1645200931300,0.00037396,40122.0,40113.0,1.33119946]
[1645200931498,0.30742679,40127.0,40118.0,1.331]
[1645200931694,0.00037396,40126.0,40122.0,0.07]
[1645200931895,0.00037396,40130.0,40125.0,0.07]
[1645200932094,0.15037396,40132.0,40131.0,0.00109356]
[1645200932296,0.77607881,40133.0,40131.0,0.00109356]
[1645200932696,1.15683923,40133.0,40131.0,0.00109356]
[1645200932896,0.0462,40132.0,40131.0,0.00109356]
[1645200933145,0.11465402,40117.0,40113.0,0.00019946]
[1645200933345,0.19173696,40124.0,40116.0,0.07]
[1645200933545,0.19173696,40124.0,40120.0,0.07]
[1645200933745,0.19173696,40124.0,40123.0,0.07]
[1645200933746,0.00037396,40124.0,40123.0,0.07]
[1645200933945,0.15,40124.0,40113.0,0.00019946]
[1645200934148,0.15,40124.0,40117.0,0.05403923]
[1645200934343,0.15,40124.0,40121.0,0.04157631]
[1645200934545,0.11412107,40125.0,40123.0,0.02911339]
[1645200934744,0.25378023,40131.0,40113.0,40.10019946]
[1645200934745,0.00037396,40124.0,40113.0,40.10019946]
[1645200934948,0.15,40121.0,40117.0,0.00418754]
[1645200935144,0.15,40121.0,40113.0,41.47739946]
[1645200935145,0.15,40123.0,40120.0,0.00418754]
[1645200935345,0.15,40123.0,40113.0,40.10019946]
[1645200935346,0.00037396,40128.0,40122.0,0.07]
[1645200935545,0.00037396,40126.0,40113.0,40.10019946]
[1645200935745,0.10800897,40130.0,40117.0,0.07]
[1645200935944,0.10800897,40130.0,40121.0,0.07]
[1645200935945,6.301e-05,40123.0,40121.0,0.07]
[1645200936145,0.1471,40122.0,40113.0,40.10019946]
[1645200936346,0.1471,40116.0,40113.0,40.10019946]
[1645200936548,0.12648984,40123.0,40116.0,1.6]
[1645200936550,0.1218638,40123.0,40116.0,1.6]
[1645200936798,0.0462,40130.0,40116.0,1.7]
[1645200937788,0.14417719,40128.0,40116.0,1.675]
[1645200938389,0.05827394,40132.0,40116.0,1.675]
[1645200938694,6e-05,40132.0,40118.0,1.331]
[1645200938890,0.77606135,40133.0,40119.0,2.9772]
[1645200939090,0.77606135,40133.0,40121.0,1.331]
[1645200939296,0.77606135,40133.0,40122.0,0.0462]
[1645200939890,0.7759,40133.0,40122.0,0.0962]
[1645200940093,0.7759,40133.0,40123.0,0.3]
[1645200940295,0.7759,40133.0,40124.0,0.1]
[1645200940548,0.7759,40133.0,40123.0,0.05]
[1645200940745,0.7759,40133.0,40122.0,0.0462]
[1645200941145,0.7759,40133.0,40113.0,40.00019946]
[1645200941146,0.2863156,40128.0,40114.0,0.3]
[1645200941347,0.0520567,40128.0,40118.0,0.00515432]
[1645200941545,0.0520567,40128.0,40118.0,0.00778703]
[1645200942143,0.1044571,40119.0,40118.0,0.00778703]
[1645200942346,0.1044571,40119.0,40118.0,0.07]
[1645200942545,0.1044571,40119.0,40115.0,0.10694734]
[1645200942747,0.1044571,40119.0,40115.0,0.00694734]
[1645200942944,0.2020567,40128.0,40115.0,0.00694734]
[1645200942945,0.0520567,40128.0,40115.0,0.00694734]
[1645200943146,0.2,40124.0,40115.0,0.00694734]
[1645200943550,0.0520567,40128.0,40115.0,0.00694734]
[1645200943551,0.2,40118.0,40115.0,4.734e-05]
[1645200943748,0.35,40123.0,40115.0,4.734e-05]
[1645200943946,0.13670049,40119.0,40115.0,4.734e-05]
[1645200944388,0.35,40116.0,40115.0,4.734e-05]
[1645200944591,0.33317,40118.0,40115.0,4.734e-05]
[1645200944792,0.13670049,40119.0,40115.0,4.734e-05]
[1645200944987,0.33317,40118.0,40115.0,4.734e-05]
[1645200945386,0.78317,40116.0,40115.0,4.734e-05]
[1645200945586,0.33317,40118.0,40115.0,4.734e-05]
[1645200945786,7.919e-05,40118.0,40113.0,39.9731468]
[1645200945988,0.26738027,40114.0,40113.0,39.9731468]
[1645200946186,0.28670049,40119.0,40113.0,39.9731468]
[1645200946187,0.13670049,40119.0,40118.0,9.99992081]
[1645200946391,0.13670049,40119.0,40118.0,10.00448023]
[1645200946392,0.46987049,40119.0,40118.0,10.00448023]
[1645200946589,0.13670049,40119.0,40118.0,10.00448023]
[1645200946787,0.2,40120.0,40118.0,9.98331152]
[1645200946987,0.35,40123.0,40118.0,9.98331152]
[1645200947204,1.0,40130.0,40119.0,0.35]
[1645200947391,1.0,40130.0,40119.0,0.47079]
[1645200947592,1.0,40130.0,40120.0,0.3462]
[1645200947788,1.0,40130.0,40120.0,0.4462]
[1645200948451,1.0,40130.0,40120.0,0.3462]
[1645200948649,1.0,40130.0,40124.0,0.07]
[1645200948849,1.0,40130.0,40128.0,0.07]
[1645200949048,1.0,40130.0,40129.0,0.07]
[1645200949248,1.0,40130.0,40119.0,0.42207]
[1645200949452,1.0,40130.0,40119.0,0.07207]
[1645200949453,0.00145922,40125.0,40119.0,0.07207]
[1645200950053,0.00145922,40125.0,40119.0,0.02207]
[1645200950254,0.0052643,40116.0,40114.0,0.20735243]
[1645200950452,0.0052643,40116.0,40113.0,39.61997294]
[1645200950453,0.14629657,40115.0,40113.0,39.61997294]
[1645200950652,0.1998,40114.0,40113.0,39.61997294]
[1645200950851,0.19919194,40114.0,40113.0,39.61997294]
[1645200951253,0.14629657,40115.0,40113.0,39.24575494]
[1645200951454,0.45878744,40114.0,40113.0,39.24575494]
[1645200951655,0.45878744,40114.0,40113.0,32.8225055]
[1645200951656,0.70180948,40114.0,40113.0,32.8225055]
[1645200951898,1.08117948,40114.0,40113.0,32.8225055]
[1645200952294,1.13117948,40114.0,40049.0,0.22876]
[1645200952504,0.15,40083.0,40080.0,0.3]
[1645200952698,0.062397,40103.0,40090.0,0.44999999]
[1645200952699,0.03014511,40091.0,40090.0,0.44999999]
[1645200953094,0.7682,40102.0,40101.0,0.14275087]
[1645200953296,0.7682,40102.0,40090.0,0.44999999]
[1645200953495,0.7682,40102.0,40090.0,0.57477699]
[1645200953697,0.1989,40093.0,40090.0,0.44999999]
[1645200953898,0.2116465,40092.0,40090.0,0.44999999]
[1645200954095,0.2116465,40092.0,40091.0,0.07]
[1645200954399,0.261299,40093.0,40090.0,0.44999999]
[1645200954596,0.062399,40093.0,40090.0,0.43999999]
[1645200954796,0.25266393,40092.0,40090.0,0.43999999]
[1645200955001,0.062399,40093.0,40090.0,0.43999999]
[1645200955198,0.23521967,40092.0,40091.0,0.3]
[1645200955398,0.23521967,40092.0,40090.0,0.43999999]
[1645200955635,0.23521967,40092.0,40091.0,0.07]
[1645200955836,0.1989,40092.0,40091.0,0.07]
[1645200956534,0.062399,40093.0,40091.0,0.07]
[1645200956734,0.062399,40093.0,40092.0,0.07]
[1645200956934,0.21921072,40093.0,40092.0,0.07]
[1645200957135,0.21921072,40093.0,40090.0,0.43999999]
[1645200957136,0.1989,40093.0,40090.0,0.43999999]
[1645200957334,0.1989,40093.0,40092.0,0.07]
[1645200957935,0.45713237,40093.0,40092.0,0.07]
[1645200958134,0.1989,40093.0,40090.0,0.43163999]
[1645200958436,0.1989,40093.0,40092.0,0.06500684]
[1645200959293,0.49561756,40093.0,40090.0,0.41282999]
[1645200959487,0.49561756,40093.0,40090.0,0.39819999]
[1645200959488,0.29671756,40093.0,40090.0,0.39819999]
[1645200959687,0.29671756,40093.0,40090.0,0.02377299]
[1645200959887,0.1989,40091.0,40090.0,0.01332299]
[1645200960089,0.1989,40091.0,40083.0,0.44790999]
[1645200960289,0.062404,40089.0,40087.0,0.06291684]
[1645200960486,0.34650933,40088.0,40083.0,0.44581999]
[1645200960686,0.062404,40089.0,40087.0,0.05664684]
[1645200960888,0.062404,40089.0,40088.0,0.05664684]
[1645200961288,0.261304,40089.0,40088.0,0.05664684]
[1645200961690,0.56374964,40089.0,40083.0,0.44581999]
[1645200961888,0.36484964,40089.0,40083.0,0.44581999]
[1645200962087,0.1989,40084.0,40083.0,0.44581999]
[1645200962889,0.1989,40084.0,40083.0,0.51581999]
[1645200964643,0.06241,40085.0,40083.0,0.51581999]
[1645200964842,0.06241,40085.0,40084.0,0.07]
[1645200965042,0.29709631,40085.0,40084.0,0.07]
[1645200965442,0.49599631,40085.0,40084.0,0.07]
[1645200966644,0.1989,40085.0,40084.0,0.07]
[1645200967283,0.1986,40085.0,40084.0,0.07]
[1645200967484,0.261003,40085.0,40084.0,0.07]
[1645200967687,0.47460235,40085.0,40084.0,0.07]
[1645200968086,0.1986,40085.0,40084.0,0.07]
[1645200970288,0.52363023,40085.0,40084.0,0.07]
[1645200971137,0.52363023,40085.0,40084.0,0.07399547]
[1645200971740,0.52363023,40085.0,40084.0,0.07405547]
[1645200972547,0.72304378,40119.0,40085.0,1.6]
[1645200972745,0.17614,40127.0,40101.0,0.5775]
[1645200972746,0.0032,40126.0,40101.0,0.5775]
[1645200973056,0.0011,40131.0,40124.0,1.6]
[1645200973057,0.4336,40130.0,40124.0,1.6]
[1645200973250,0.01674006,40144.0,40125.0,1.90610688]
[1645200973444,0.11852225,40140.0,40138.0,0.5775]
[1645200973643,0.11852225,40140.0,40138.0,0.5764]
[1645200973847,0.0011,40159.0,40141.0,1.6]
[1645200974044,0.03813215,40149.0,40142.0,0.35230688]
[1645200974304,0.03813215,40149.0,40143.0,0.016108]
[1645200974305,0.00036128,40149.0,40143.0,0.016108]
[1645200974497,0.00036128,40149.0,40143.0,0.015008]
[1645200974498,0.1,40146.0,40143.0,0.015008]
[1645200974703,0.2,40145.0,40125.0,0.30610688]
[1645200974895,0.1,40135.0,40133.0,0.124666]
[1645200975094,0.24153778,40135.0,40129.0,0.0099]
[1645200975295,0.22760751,40134.0,40132.0,0.006641]
[1645200975496,0.10940804,40128.0,40122.0,0.30610688]
[1645200975697,0.10940804,40128.0,40121.0,0.1]
[1645200975698,0.22760751,40134.0,40120.0,0.30610688]
[1645200975896,0.0462,40131.0,40120.0,0.1]
[1645200976496,0.0462,40131.0,40123.0,0.062359]
[1645200976694,0.13609402,40125.0,40123.0,0.062359]
[1645200977098,0.25019149,40123.0,40121.0,0.124724]
[1645200977295,0.25019149,40123.0,40113.0,0.249457]
[1645200977296,0.0462,40122.0,40113.0,0.187086]
[1645200977497,0.0462,40122.0,40114.0,0.30485516]
[1645200977695,0.0462,40122.0,40118.0,0.124738]
[1645200977895,0.27778372,40121.0,40118.0,0.124738]
[1645200978141,0.0462,40120.0,40047.0,0.5974778]
[1645200978346,0.0462,40120.0,40085.0,1.0]
[1645200978347,0.1,40109.0,40085.0,1.0]
[1645200978541,1.23440578,40112.0,40083.0,0.21121209]
[1645200978542,0.05,40099.0,40083.0,0.21121209]
[1645200978742,0.05,40099.0,40083.0,0.062383]
[1645200978743,0.1,40091.0,40083.0,0.062383]
[1645200978939,0.0462,40090.0,40084.0,0.36725287]
[1645200979138,0.1999,40092.0,40084.0,0.55434716]
[1645200979340,0.13959229,40088.0,40084.0,0.249492]
[1645200979942,0.1,40091.0,40088.0,1.6]
[1645200980139,0.1,40091.0,40089.0,0.124769]
[1645200980340,0.0962,40099.0,40089.0,0.124769]
[1645200980341,0.1,40098.0,40089.0,0.124769]
[1645200980540,0.1998,40096.0,40089.0,0.239539]
[1645200980946,0.33259451,40096.0,40090.0,0.062385]
[1645200981144,0.33259451,40096.0,40092.0,0.062383]
[1645200981346,0.05,40099.0,40095.0,0.07]
[1645200981547,0.1,40103.0,40098.0,0.07]
[1645200981796,0.01,40109.0,40099.0,0.42955216]
[1645200981991,0.1,40106.0,40101.0,0.062349]
[1645200982190,0.1,40113.0,40101.0,0.062349]
[1645200982191,0.1,40111.0,40101.0,0.062349]
[1645200982391,0.14756684,40108.0,40104.0,0.187062]
[1645200982790,0.1,40111.0,40104.0,0.187062]
[1645200982991,0.30118047,40112.0,40104.0,0.187062]
[1645200983192,0.1,40112.0,40108.0,0.13236]
[1645200983393,0.1,40113.0,40111.0,0.07]
[1645200983596,0.05,40118.0,40112.0,0.07]
[1645200983792,0.05,40118.0,40110.0,0.187026]
[1645200983992,0.05,40118.0,40110.0,0.233226]
[1645200984191,0.1,40122.0,40110.0,0.233226]
[1645200984390,0.1,40122.0,40112.0,0.124684]
[1645200984591,0.1,40122.0,40116.0,0.07]
[1645200984793,0.0598,40128.0,40120.0,0.07]
[1645200984794,0.1,40123.0,40120.0,0.07]
[1645200984995,0.05,40128.0,40122.0,0.07]
[1645200985192,0.0011,40130.0,40118.0,1.6412]
[1645200985392,0.1,40128.0,40119.0,0.37221004]
[1645200985645,0.1,40126.0,40123.0,0.132332]
[1645200985843,0.33918922,40127.0,40125.0,0.07]
[1645200986045,0.33918922,40127.0,40126.0,0.132332]
[1645200986046,0.22173031,40127.0,40126.0,0.132332]
[1645200986249,0.0011,40130.0,40126.0,0.182332]
[1645200986444,0.0011,40130.0,40126.0,0.112332]
[1645200987446,0.0011,40130.0,40128.0,0.07]
[1645200987447,0.0067,40129.0,40128.0,0.07]
[1645200987651,0.0011,40133.0,40129.0,1.6]
[1645200987849,0.0011,40133.0,40129.0,1.7]
[1645200988147,0.0011,40133.0,40132.0,0.07]
[1645200988347,0.0011,40133.0,40132.0,0.1162]
[1645200989993,0.0011,40133.0,40132.0,0.48841004]
[1645200990294,0.0011,40133.0,40132.0,0.58841004]
[1645200990693,0.0011,40133.0,40132.0,0.2162]
[1645200990897,0.0011,40133.0,40132.0,0.21626]
[1645200991097,0.0011,40133.0,40132.0,0.10006]
[1645200991295,0.0011,40133.0,40132.0,6e-05]
[1645200991800,0.35703724,40133.0,40132.0,6e-05]
[1645200992095,0.55703724,40133.0,40132.0,6e-05]
[1645200992496,0.35703724,40133.0,40132.0,6e-05]
[1645200992897,0.1011,40133.0,40132.0,6e-05]
[1645200993137,0.0011,40133.0,40132.0,6e-05]
[1645200993638,0.20067597,40133.0,40132.0,6e-05]
[1645200994043,0.00067597,40133.0,40132.0,6e-05]
[1645200994642,0.21240637,40133.0,40132.0,6e-05]
[1645200995243,0.21240637,40133.0,40115.0,0.12838]
[1645200995244,0.51240637,40133.0,40117.0,0.124689]
[1645200995442,0.51240637,40133.0,40102.0,0.249376]
[1645200995443,0.1,40120.0,40113.0,0.062358]
[1645200995840,0.1,40117.0,40113.0,0.062358]
[1645200996245,0.1,40117.0,40116.0,0.07]
[1645200996445,0.31070692,40117.0,40116.0,0.07]
[1645200996905,0.31070692,40117.0,40109.0,0.062364]
[1645200997106,0.13279001,40110.0,40105.0,0.124728]
[1645200997321,0.2,40111.0,40105.0,0.124728]
[1645200997512,0.0093,40116.0,40105.0,0.124728]
[1645200997907,0.0093,40116.0,40109.0,0.07]
[1645200998107,0.0093,40116.0,40113.0,0.07]
[1645200998307,0.0093,40116.0,40106.0,0.062362]
[1645200998308,0.44831749,40116.0,40115.0,0.07]
[1645200998606,0.1,40120.0,40115.0,0.07]
[1645200998806,0.1,40120.0,40119.0,0.07]
[1645200999608,0.23514069,40120.0,40119.0,0.07]
[1645201000008,0.1,40120.0,40119.0,0.07]
[1645201000311,0.7513,40121.0,40119.0,0.07]
[1645201000555,1.07658687,40121.0,40118.0,0.062343]
[1645201000745,0.10006247,40120.0,40118.0,0.062343]
[1645201000946,0.10006247,40120.0,40119.0,0.07]
[1645201001549,6.247e-05,40120.0,40119.0,0.07]
[1645201001751,6.247e-05,40120.0,40119.0,0.44221004]
[1645201002047,0.101,40139.0,40120.0,1.6001874]
[1645201002048,0.0011,40139.0,40120.0,1.6001874]
[1645201002248,0.05,40137.0,40120.0,1.7125044]
[1645201002545,0.05,40137.0,40124.0,0.062317]
[1645201002546,0.14339786,40125.0,40124.0,0.062317]
[1645201002749,0.34302426,40127.0,40121.0,0.124637]
[1645201003346,0.1,40131.0,40121.0,0.124637]
[1645201003546,0.1,40131.0,40121.0,0.186976]
[1645201003948,0.26904593,40133.0,40123.0,0.062319]
[1645201004149,0.26904593,40133.0,40127.0,0.07]
[1645201004150,0.01007597,40133.0,40127.0,0.07]
[1645201004426,0.00067597,40133.0,40131.0,0.07]
[1645201004619,0.00067597,40133.0,40132.0,0.07]
[1645201007521,0.04567597,40137.0,40132.0,0.50305448]
[1645201007725,0.00036128,40145.0,40134.0,0.15]
[1645201007924,0.00036128,40145.0,40135.0,0.37073748]
[1645201008148,0.00036128,40145.0,40135.0,0.54535448]
[1645201008349,0.35163193,40142.0,40135.0,0.274617]
[1645201008551,0.35163193,40142.0,40135.0,0.212309]
[1645201008747,0.35163193,40142.0,40135.0,0.162309]
[1645201008748,0.1,40141.0,40135.0,0.162309]
[1645201008949,0.35163193,40142.0,40135.0,0.1]
[1645201009149,0.11289344,40136.0,40135.0,0.1]
[1645201009349,0.1,40138.0,40133.0,0.124617]
[1645201009553,0.35163193,40142.0,40133.0,0.18694]
[1645201009948,0.0915285,40141.0,40133.0,0.18194]
[1645201010150,0.09426133,40140.0,40134.0,0.05]
[1645201010351,0.35163193,40142.0,40134.0,0.05]
[1645201010352,0.10499608,40138.0,40134.0,0.05]
[1645201010551,0.09321793,40137.0,40135.0,0.124627]
[1645201010750,0.10036128,40145.0,40136.0,0.37073748]
[1645201010949,6.028e-05,40138.0,40136.0,0.37073748]
[1645201011150,6.028e-05,40138.0,40136.0,0.52073748]
[1645201011549,6.028e-05,40138.0,40137.0,0.59073748]
[1645201011799,6.028e-05,40138.0,40137.0,0.69073748]
[1645201012102,0.00072256,40148.0,40139.0,0.12459]
[1645201012298,0.00018505,40146.0,40143.0,0.02989202]
[1645201012500,0.00018505,40146.0,40145.0,0.07]
[1645201012696,0.34435603,40146.0,40145.0,0.07]
[1645201013096,0.00018505,40146.0,40145.0,0.07]
[1645201014001,0.10072256,40148.0,40145.0,0.59073748]
[1645201014197,0.00072256,40148.0,40147.0,0.07]
[1645201015554,0.001,40152.0,40147.0,0.22]
[1645201015751,0.001,40152.0,40146.0,0.286868]
[1645201015949,0.30170961,40152.0,40146.0,0.286868]
[1645201016350,0.1,40147.0,40146.0,0.286868]
[1645201016553,0.1,40147.0,40146.0,0.15446269]
[1645201017049,0.0094,40151.0,40146.0,0.15446269]
[1645201017252,0.0094,40151.0,40150.0,0.07]
[1645201017448,0.1044,40151.0,40150.0,0.07]
[1645201017649,0.0044,40151.0,40150.0,0.07]
[1645201017851,0.001,40152.0,40150.0,0.07]
[1645201018050,0.001,40152.0,40151.0,0.07]
[1645201018250,0.101,40152.0,40151.0,0.07]
[1645201018649,0.24785141,40152.0,40151.0,0.07]
[1645201019051,0.001,40152.0,40151.0,0.07]
[1645201019294,0.001,40152.0,40150.0,0.062294]
[1645201019494,0.001,40152.0,40151.0,0.02988569]
[1645201019695,0.301,40152.0,40151.0,0.02988569]
[1645201019900,0.101,40152.0,40151.0,0.02988569]
[1645201020094,0.301,40152.0,40146.0,0.1]
[1645201020295,0.301,40152.0,40145.0,0.0057646]
[1645201020296,0.001,40152.0,40147.0,0.062307]
[1645201020500,0.001,40152.0,40145.0,0.0057646]
[1645201020501,0.1,40148.0,40145.0,0.0057646]
[1645201021395,0.1,40148.0,40141.0,0.124605]
[1645201021596,0.1,40148.0,40142.0,0.37073748]
[1645201021796,0.1,40148.0,40144.0,0.186912]
[1645201022195,0.27906215,40147.0,40145.0,0.05]
[1645201022400,0.1,40148.0,40145.0,0.05]
[1645201022797,0.1,40148.0,40147.0,0.07]
[1645201023059,0.1,40148.0,40146.0,0.062298]
[1645201023451,0.44793433,40148.0,40146.0,0.062298]
[1645201023653,0.13273375,40149.0,40146.0,0.062298]
[1645201023854,0.0017397,40151.0,40146.0,0.062298]
[1645201024052,0.0017397,40151.0,40150.0,0.07]
[1645201024455,0.1017397,40151.0,40146.0,0.112298]
[1645201024957,0.0017397,40151.0,40146.0,0.112298]
[1645201025157,0.1250534,40147.0,40146.0,0.112298]
[1645201025354,0.2250534,40147.0,40146.0,0.182298]
[1645201025555,0.2250534,40147.0,40146.0,0.132298]
[1645201025756,0.1250534,40147.0,40146.0,0.062298]
[1645201025957,0.1,40150.0,40146.0,0.062298]
[1645201026357,0.1,40147.0,40146.0,0.062298]
[1645201026800,0.00171352,40148.0,40146.0,0.44073748]
[1645201027002,0.00171352,40148.0,40147.0,0.07]
[1645201028401,0.00171352,40148.0,40147.0,0.44073748]
[1645201028603,0.001,40152.0,40147.0,0.43107195]
[1645201028801,0.001,40152.0,40147.0,0.1]
[1645201029001,0.001,40152.0,40147.0,0.162291]
[1645201029401,0.28060308,40152.0,40147.0,0.162291]
[1645201029603,0.001,40152.0,40147.0,0.162291]
[1645201029801,0.0041967,40155.0,40148.0,0.85]
[1645201029802,0.0012163,40155.0,40148.0,0.85]
[1645201030002,0.0012163,40155.0,40150.0,0.15]
[1645201030209,0.0012163,40155.0,40154.0,0.06033447]
[1645201030659,0.0011,40159.0,40154.0,0.06033447]
[1645201030660,0.00904543,40160.0,40154.0,0.06033447]
[1645201030851,0.00904543,40160.0,40158.0,0.06033447]
[1645201030852,0.09425266,40159.0,40158.0,0.06033447]
[1645201031154,0.0008454,40160.0,40159.0,0.062279]
[1645201031351,0.0008454,40160.0,40159.0,0.12261347]
[1645201031753,0.0008454,40160.0,40159.0,0.17261347]
[1645201032154,0.0011,40163.0,40162.0,0.06226]
[1645201032355,0.00138988,40167.0,40162.0,0.12105587]
[1645201032552,0.0033679,40171.0,40162.0,0.12105587]
[1645201032553,0.001,40171.0,40166.0,0.06033447]
[1645201032761,0.001,40171.0,40169.0,0.15]
[1645201032953,3.63210094,40176.0,40172.0,1.6]
[1645201033152,3.63210094,40176.0,40175.0,0.06033447]
[1645201033351,3.63210094,40176.0,40175.0,0.21033447]
[1645201033551,2.88525894,40176.0,40175.0,0.32257247]
[1645201033952,1.9477231,40176.0,40175.0,0.362238]
[1645201034154,0.0032,40180.0,40179.0,0.15]
[1645201034155,7.78e-05,40180.0,40179.0,0.15]
[1645201034403,7.78e-05,40180.0,40179.0,0.17986709]
[1645201034603,7.78e-05,40180.0,40179.0,0.22986709]
[1645201034802,7.78e-05,40180.0,40179.0,0.29210509]
[1645201035004,0.1000778,40180.0,40179.0,0.14210509]
[1645201035406,7.78e-05,40180.0,40179.0,0.14210509]
[1645201036205,0.00266096,40181.0,40180.0,1.6]
[1645201036403,0.00266096,40181.0,40180.0,1.76033447]
[1645201036603,0.00266096,40181.0,40180.0,1.72986709]
[1645201036806,0.10266096,40181.0,40180.0,0.02986709]
[1645201037602,0.00266096,40181.0,40180.0,0.02986709]
[1645201037804,0.1,40189.0,40180.0,0.02986709]
[1645201038057,0.1,40193.0,40181.0,0.062252]
[1645201038247,0.5,40197.0,40181.0,0.112252]
[1645201038248,0.009956,40188.0,40181.0,0.112252]
[1645201038446,0.1,40182.0,40181.0,0.112252]
[1645201038651,0.009956,40188.0,40183.0,0.062247]
[1645201038847,0.009956,40188.0,40184.0,0.124483]
[1645201039146,0.009956,40188.0,40180.0,0.124488]
[1645201039347,0.009956,40188.0,40181.0,0.062242]
[1645201039547,0.009956,40188.0,40185.0,0.06033447]
[1645201039747,0.009956,40188.0,40187.0,0.02986709]
[1645201040746,0.109956,40188.0,40187.0,0.02986709]
[1645201041247,0.009956,40188.0,40187.0,0.02986709]
[1645201041448,0.009956,40188.0,40186.0,0.05]
[1645201041652,0.2,40193.0,40189.0,0.062232]
[1645201041895,0.1,40199.0,40192.0,0.06033447]
[1645201041896,0.1,40197.0,40192.0,0.06033447]
[1645201042094,0.1,40197.0,40196.0,0.06033447]
[1645201042295,0.1,40197.0,40187.0,0.15]